bitfinex/quotes_ETHUSD_20251012
["timestamp","ask_amount","ask_price","bid_price","bid_amount"]
[1760227614220,20.07213803,3753.0,3752.9,2.92602619]
[1760227614627,7.74554303,3753.0,3752.9,4.15602619]
[1760227614827,4.58553503,3753.0,3752.9,4.15602619]
[1760227615000,10.03874703,3753.0,3752.9,4.15602619]
[1760227615204,12.74449303,3753.0,3752.9,4.15602619]
[1760227615628,13.17389309,3753.0,3752.9,4.15602619]
[1760227616022,13.07489309,3753.0,3752.9,5.38602619]
[1760227616225,11.04563703,3753.0,3752.9,5.38602619]
[1760227616425,1.921,3753.0,3752.9,5.38602619]
[1760227617420,1.921,3753.0,3752.9,6.61602619]
[1760227617819,14.98062303,3753.0,3752.9,6.61602619]
[1760227618723,22.33355609,3753.0,3752.9,6.61602619]
[1760227618921,18.83077209,3753.0,3752.9,7.84602619]
[1760227619656,18.83077209,3753.0,3752.9,7.84802619]
[1760227619857,22.33355609,3753.0,3752.9,7.84802619]
[1760227620355,9.93652909,3753.0,3752.9,9.07802619]
[1760227620528,11.28110376,3753.0,3752.9,9.07802619]
[1760227620731,22.33355609,3753.0,3752.9,9.07802619]
[1760227620935,15.16575209,3753.0,3752.9,9.07802619]
[1760227621624,15.16575209,3753.0,3752.9,10.30802619]
[1760227621625,16.3171093,3753.0,3752.9,10.30802619]
[1760227621926,19.98407932,3751.7,3751.6,1.23]
[1760227622144,16.71043632,3751.7,3751.6,1.23]
[1760227622541,17.04083638,3751.7,3751.6,1.23]
[1760227622747,22.44807938,3751.7,3751.6,1.23]
[1760227622956,22.44807938,3751.7,3751.6,2.46]
[1760227623330,23.08167938,3751.7,3751.6,2.46]
[1760227623758,6.02248566,3751.7,3751.6,2.46]
[1760227624060,23.34110666,3751.7,3751.6,2.46]
[1760227624262,23.34110666,3751.7,3749.8,13.53]
[1760227624263,1.92,3749.9,3749.8,13.53]
[1760227624559,2.66639384,3750.4,3749.8,13.53]
[1760227624859,16.617827,3750.7,3749.8,13.53]
[1760227625062,2.66650293,3750.3,3749.8,13.53]
[1760227625265,1.92,3750.2,3749.8,13.53]
[1760227625436,1.92,3750.8,3749.8,13.53]
[1760227625625,1.92,3750.6,3749.8,14.76]
[1760227625826,1.92,3750.8,3749.8,15.63561525]
[1760227626139,0.1157,3751.2,3749.9,0.45866737]
[1760227626332,1.92,3750.7,3749.9,0.45866737]
[1760227626651,2.66618889,3750.7,3749.9,0.432]
[1760227626830,1.92,3750.6,3750.0,1.60676153]
[1760227627170,0.25942728,3752.3,3750.1,0.67556595]
[1760227627351,5.772052,3751.8,3750.2,1.0656]
[1760227627554,0.41824,3751.9,3750.4,0.6336]
[1760227627769,2.66504197,3752.3,3750.8,0.6336]
[1760227627970,4.855433,3752.6,3751.1,0.6336]
[1760227628265,4.855433,3752.6,3750.9,0.32997115]
[1760227628266,2.66525869,3752.0,3750.9,0.32997115]
[1760227628453,2.66595574,3751.0,3750.9,1.23]
[1760227628763,2.66515497,3752.2,3750.9,1.23]
[1760227628764,2.66594557,3751.1,3750.9,1.23]
[1760227628963,1.92,3751.2,3750.9,1.23]
[1760227629269,2.66501636,3752.4,3751.0,0.45865955]
[1760227629423,10.006426,3752.1,3751.0,0.45865955]
[1760227629628,1.92,3751.8,3751.0,0.60086596]
[1760227629827,0.33040006,3752.4,3751.0,1.83086596]
[1760227629828,1.92,3752.2,3751.0,1.83086596]
[1760227630029,1.92,3752.0,3751.0,1.83086596]
[1760227630465,2.66544176,3751.8,3751.0,1.83086596]
[1760227630669,1.92,3751.8,3751.0,1.83086596]
[1760227630863,1.92,3751.8,3751.1,0.3060866]
[1760227631082,2.66510496,3752.2,3751.2,0.432]
[1760227631293,1.38537647,3752.7,3751.3,3.32599095]
[1760227631584,0.1328,3751.7,3751.5,0.6336]
[1760227631751,0.1328,3751.7,3751.6,1.0656]
[1760227632080,0.1328,3751.7,3751.6,1.23552]
[1760227632300,0.1328,3751.7,3751.6,3.92770466]
[1760227632580,0.1328,3751.7,3751.6,5.13104937]
[1760227633387,0.1328,3751.7,3751.6,1.83192]
[1760227633688,0.1328,3751.7,3751.6,1.23]
[1760227633849,0.1328,3751.7,3751.6,2.46]
[1760227634049,0.1328,3751.7,3751.6,2.892]
[1760227634597,4.71825832,3751.7,3751.6,2.46]
[1760227634751,22.03687932,3751.7,3751.6,2.46]
[1760227635087,18.93644332,3751.7,3751.6,2.46]
[1760227635276,18.93644332,3751.7,3751.6,3.69]
[1760227635654,17.66667532,3751.7,3751.6,3.69]
[1760227635983,4.71825832,3751.7,3751.6,3.69]
[1760227636386,18.22885732,3751.7,3751.6,3.69]
[1760227636685,22.46627938,3751.7,3751.6,4.92]
[1760227637388,10.81308938,3751.7,3751.6,4.92]
[1760227637562,10.69108538,3751.7,3751.6,4.92]
[1760227638183,10.69108538,3751.7,3751.6,2.1668422]
[1760227638619,22.46727938,3751.7,3751.6,2.1668422]
[1760227638789,12.88347832,3751.7,3751.6,2.1668422]
[1760227639118,13.31287838,3751.7,3751.6,2.1668422]
[1760227639518,22.46727938,3751.7,3751.6,3.3968422]
[1760227640597,23.61863659,3751.7,3751.6,3.3968422]
[1760227640998,23.61863659,3751.7,3751.6,4.6268422]
[1760227641388,2.66595574,3751.0,3750.9,1.23]
[1760227641596,21.90514545,3750.2,3750.1,0.002]
[1760227641794,17.27851677,3749.9,3749.8,11.367158]
[1760227642019,17.50001677,3749.9,3749.8,11.367158]
[1760227642408,17.50001677,3749.9,3749.8,12.597158]
[1760227643228,14.75037177,3749.9,3749.8,12.597158]
[1760227643526,4.80823777,3749.9,3749.8,12.597158]
[1760227643736,17.50001677,3749.9,3749.8,12.597158]
[1760227643909,17.50001677,3749.9,3749.8,13.827158]
[1760227644933,17.83041683,3749.9,3749.8,13.827158]
[1760227645230,13.86594383,3749.9,3749.8,15.057158]
[1760227645737,17.83041683,3749.9,3749.8,15.057158]
[1760227647134,17.83041683,3749.9,3749.8,16.287158]
[1760227648744,17.83041683,3749.9,3749.8,17.517158]
[1760227650341,17.83041683,3749.9,3749.8,18.747158]
[1760227650708,5.13863783,3749.9,3749.8,18.747158]
[1760227651008,17.83041683,3749.9,3749.8,18.747158]
[1760227651742,5.13863783,3749.9,3749.8,19.977158]
[1760227652045,17.83041683,3749.9,3749.8,19.977158]
[1760227653021,17.83041683,3749.9,3749.8,21.207158]
[1760227653841,5.13863783,3749.9,3749.8,21.207158]
[1760227654066,17.83041683,3749.9,3749.8,21.207158]
[1760227654576,17.83041683,3749.9,3749.8,22.437158]
[1760227655030,17.83141683,3749.9,3749.8,22.437158]
[1760227656172,17.83141683,3749.9,3749.8,23.667158]
[1760227657484,6.83905577,3749.9,3749.8,24.897158]
[1760227657840,7.90875877,3749.9,3749.8,26.06093821]
[1760227658175,5.98875877,3749.9,3749.8,26.06093821]
[1760227658389,7.90875877,3749.9,3749.8,24.897158]
[1760227658938,4.58773777,3749.9,3749.8,26.127158]
[1760227659139,6.94959277,3749.9,3749.8,26.127158]
[1760227659340,4.58773777,3749.9,3749.8,26.127158]
[1760227659661,0.001,3749.9,3749.8,26.571158]
[1760227659980,0.001,3749.9,3749.8,29.2282738]
[1760227660350,0.001,3749.9,3749.8,30.4582738]
[1760227661779,0.001,3749.9,3749.8,31.6882738]
[1760227662686,0.001,3749.9,3749.8,34.98868269]
[1760227663063,0.001,3749.9,3749.8,36.21868269]
[1760227663398,0.1338,3749.9,3749.8,36.21868269]
[1760227663602,0.001,3749.9,3749.8,36.21868269]
[1760227663782,0.001,3749.9,3749.8,36.35148269]
[1760227664599,0.001,3749.9,3749.8,37.58148269]
[1760227665016,7.35412577,3749.9,3749.8,31.047158]
[1760227665209,17.41373646,3749.9,3749.8,31.047158]
[1760227665506,17.41373646,3749.9,3749.4,1.232]
[1760227665507,17.27880126,3749.5,3749.4,1.232]
[1760227665798,17.27901467,3749.2,3749.1,0.002]
[1760227666098,17.98188042,3749.2,3749.1,0.002]
[1760227666306,4.58730682,3749.1,3748.9,1e-08]
[1760227666478,17.27915696,3749.0,3748.9,1e-08]
[1760227666679,17.98202271,3749.0,3748.9,1e-08]
[1760227666861,18.5004669,3749.0,3748.9,1e-08]
[1760227667276,2.66780493,3748.4,3748.3,2.32260961]
[1760227667501,17.27958393,3748.4,3748.3,2.32260961]
[1760227667803,17.37958393,3748.4,3748.3,2.32260961]
[1760227667972,17.75204962,3748.4,3748.3,1e-08]
[1760227668173,5.06027062,3748.4,3748.3,1e-08]
[1760227668398,17.75204962,3748.4,3748.3,1e-08]
[1760227668705,18.855459,3748.4,3748.3,1e-08]
[1760227671277,18.221859,3748.4,3748.3,1e-08]
[1760227671478,14.03293625,3748.4,3748.3,1.23000001]
[1760227671800,15.95293625,3748.4,3748.3,1.23000001]
[1760227672300,2.80721425,3748.4,3748.3,1.23000001]
[1760227672505,15.49899325,3748.4,3748.3,1.23000001]
[1760227672806,8.38106525,3748.4,3748.3,2.46000001]
[1760227673366,17.41899325,3748.4,3748.3,2.46000001]
[1760227673605,17.41899325,3748.4,3748.3,2.46200001]
[1760227674171,17.41899325,3748.4,3748.3,3.69200001]
[1760227674367,4.72721425,3748.4,3748.3,3.69200001]
[1760227674573,17.41899325,3748.4,3748.3,3.69200001]
[1760227675390,5.53008,3748.4,3748.3,3.69200001]
[1760227675598,18.221859,3748.4,3748.3,4.92200001]
[1760227676518,18.221859,3748.4,3748.3,1e-08]
[1760227677791,18.855459,3748.4,3748.3,1e-08]
[1760227678490,2.66808964,3748.0,3747.9,0.002]
[1760227678683,17.98273439,3748.0,3747.9,0.002]
[1760227678889,18.08273439,3748.0,3747.9,0.002]
[1760227679090,18.08273439,3748.0,3745.6,2.66979581]
[1760227679091,2.66837442,3747.6,3747.3,1e-08]
[1760227679286,17.28029583,3747.4,3747.3,1e-08]
[1760227679929,17.38029583,3747.4,3747.3,1.23000001]
[1760227680627,18.08316158,3747.4,3747.3,1.23000001]
[1760227681193,17.38029583,3747.4,3747.3,0.52713426]
[1760227681396,18.01389583,3747.4,3747.3,1e-08]
[1760227681830,1.92,3746.4,3745.3,4.97572188]
[1760227682015,17.28100812,3746.4,3745.3,4.97572188]
[1760227682215,17.38100812,3746.4,3745.3,4.97572188]
[1760227682724,17.38100812,3746.4,3746.3,2.46]
[1760227683111,16.78273712,3746.4,3746.3,2.46]
[1760227683491,17.38100812,3746.4,3746.3,2.46]
[1760227684114,17.38100812,3746.4,3746.3,3.69]
[1760227685324,17.52279274,3746.4,3746.3,3.69]
[1760227685541,17.52279274,3746.4,3746.3,4.92]
[1760227685842,17.52279274,3746.4,3746.3,4.9111]
[1760227687037,18.80068635,3746.4,3746.3,1e-08]
[1760227687943,18.45925946,3746.4,3746.3,1e-08]
[1760227688242,17.52279274,3746.4,3746.3,1e-08]
[1760227688422,17.52279274,3746.4,3746.3,1.23000001]
[1760227689243,17.52279274,3746.4,3746.3,1e-08]
[1760227689244,18.45925946,3746.4,3746.3,1e-08]
[1760227689544,18.80068635,3746.4,3746.3,1e-08]
[1760227689750,18.49781963,3746.4,3746.3,1e-08]
[1760227689923,18.60151567,3745.4,3745.3,1e-08]
[1760227690125,17.28172079,3745.4,3745.3,1e-08]
[1760227690320,18.70321567,3745.4,3745.3,1e-08]
[1760227690510,17.80229746,3745.4,3745.3,1e-08]
[1760227690715,19.12209234,3745.4,3745.3,1e-08]
[1760227691124,19.12209234,3745.4,3745.3,1.23000001]
[1760227691335,19.33681567,3745.4,3745.3,1e-08]
[1760227691838,2.6696806,3745.8,3744.7,1.23]
[1760227691839,12.691779,3745.9,3744.8,0.02670369]
[1760227692034,12.691779,3746.1,3745.1,2.67012616]
[1760227692249,12.691779,3746.1,3745.2,0.4426]
[1760227692459,2.66888538,3746.9,3745.3,0.66030013]
[1760227692624,5.200181,3746.6,3745.4,0.4426]
[1760227692827,2.97090451,3748.1,3745.5,0.6336]
[1760227692828,12.691779,3747.3,3745.5,0.6336]
[1760227693033,1.92,3746.5,3745.5,3.30345305]
[1760227693262,1.92,3746.6,3745.6,3.04440366]
[1760227693429,12.691779,3746.5,3745.6,0.37460531]
[1760227693628,1.92,3746.3,3745.6,0.37460531]
[1760227693829,1.92,3746.4,3745.6,0.37460531]
[1760227694064,1.92,3746.5,3745.7,0.8546734]
[1760227694240,1.92,3746.5,3745.8,0.4426]
[1760227694442,1.92,3746.7,3745.8,0.4426]
[1760227694739,12.691779,3747.7,3745.9,0.02669585]
[1760227695035,2.66862822,3747.3,3746.1,2.66938202]
[1760227695248,1.92,3747.1,3746.2,1.27551981]
[1760227695434,0.102,3747.8,3746.2,1.27551981]
[1760227695645,4.07162,3747.0,3746.2,0.668]
[1760227695850,1.92,3746.9,3746.2,0.668]
[1760227696561,1.92,3747.0,3746.2,0.668]
[1760227696762,2.66881398,3747.0,3746.2,0.668]
[1760227696965,2.66881398,3747.0,3746.2,1.898]
[1760227697131,2.66881398,3747.0,3746.3,0.3128]
[1760227697663,1.92,3746.9,3746.2,1.23]
[1760227697863,17.28107937,3746.3,3746.2,1.23]
[1760227698050,17.38307937,3746.3,3746.2,1.23]
[1760227698250,17.28107937,3746.3,3746.2,2.46]
[1760227698859,4.58930037,3746.3,3746.2,1.65778804]
[1760227699195,10.18312937,3746.3,3746.2,1.65778804]
[1760227699373,1.92,3746.3,3746.2,2.64126055]
[1760227699841,1.92,3746.3,3746.2,3.87126055]
[1760227700442,1.92,3746.3,3746.2,3.84456684]
[1760227700851,1.92,3746.3,3746.2,2.88778804]
[1760227701180,17.28107937,3746.3,3746.2,2.88778804]
[1760227701361,17.28107937,3746.3,3746.2,4.11778804]
[1760227702276,17.38307937,3746.3,3746.2,4.11778804]
[1760227702495,17.68594609,3746.3,3746.2,4.11778804]
[1760227702682,17.68594609,3746.3,3746.2,5.34778804]
[1760227703272,17.28115062,3746.2,3746.1,1.2296163]
[1760227703476,17.38315062,3746.2,3746.1,1.2296163]
[1760227704054,17.38315062,3746.2,3746.1,2.4596163]
[1760227704551,14.68807862,3746.2,3746.1,2.4596163]
[1760227705162,16.46227962,3746.2,3746.1,2.4596163]
[1760227705474,16.46227962,3746.2,3746.1,3.6896163]
[1760227705873,4.58937162,3746.2,3746.1,3.6896163]
[1760227706050,7.92877262,3746.2,3746.1,3.6896163]
[1760227706284,7.22779062,3746.2,3746.1,3.6896163]
[1760227706664,7.22779062,3746.2,3746.1,4.9196163]
[1760227707062,4.58937162,3746.2,3746.1,4.9216163]
[1760227707267,17.38315062,3746.2,3746.1,4.9216163]
[1760227707517,14.67494689,3746.2,3746.1,4.9216163]
[1760227707800,11.56755262,3746.2,3746.1,4.9216163]
[1760227708106,11.66955262,3746.2,3746.1,6.1516163]
[1760227708406,17.38315062,3746.2,3746.1,6.1516163]
[1760227709267,17.38315062,3746.2,3746.1,7.3816163]
[1760227710590,17.38315062,3746.2,3746.1,8.6116163]
[1760227711172,4.69137162,3746.2,3746.1,8.6116163]
[1760227711370,8.56121462,3746.2,3746.1,8.6116163]
[1760227711572,2.67030037,3746.3,3746.1,8.6116163]
[1760227711573,0.001,3746.3,3746.1,9.8009076]
[1760227711905,8.75631362,3746.2,3746.1,10.3418076]
[1760227712212,1.92,3746.2,3746.1,9.8416163]
[1760227712711,1.92,3746.2,3746.1,10.5307163]
[1760227713010,1.92,3746.2,3746.1,10.3155163]
[1760227713206,4.58937162,3746.2,3746.1,10.3155163]
[1760227713505,1.92,3746.2,3746.1,11.5455163]
[1760227713668,1.92,3746.2,3746.1,12.91546793]
[1760227714522,0.001,3746.3,3746.1,12.91546793]
[1760227714723,0.001,3746.3,3746.2,0.50059371]
[1760227715435,0.001,3746.3,3746.2,0.4739]
[1760227716027,0.001,3746.3,3746.2,1.7039]
[1760227716233,0.001,3746.3,3746.2,6.17776263]
[1760227716436,0.001,3746.3,3746.2,6.81136263]
[1760227717402,0.001,3746.3,3746.2,8.04136263]
[1760227718527,0.001,3746.7,3746.6,3.30268663]
[1760227719035,0.001,3746.7,3746.6,3.77658663]
[1760227719329,0.001,3746.7,3746.6,4.55396346]
[1760227720117,0.001,3746.7,3746.6,2.98207683]
[1760227720324,0.001,3746.7,3746.6,2.3375]
[1760227720900,0.001,3746.7,3746.6,1.7039]
[1760227721100,0.001,3746.7,3746.6,1.23]
[1760227721101,4.5900154,3746.7,3746.6,1.23]
[1760227721335,1.921,3746.7,3746.6,1.23]
[1760227721536,1.921,3746.7,3746.6,2.9219]
[1760227722102,1.921,3746.7,3746.6,3.2167593]
[1760227723014,1.921,3746.7,3746.6,4.4467593]
[1760227723210,0.1338,3746.7,3746.6,7.74944593]
[1760227723413,0.001,3746.7,3746.6,7.74944593]
[1760227724527,0.001,3746.7,3746.6,8.97944593]
[1760227725937,0.001,3746.7,3746.6,10.20944593]
[1760227727127,0.001,3746.7,3746.6,11.43944593]
[1760227728243,0.001,3746.7,3746.6,10.80584593]
[1760227728402,0.001,3746.7,3746.6,9.3667593]
[1760227728604,0.001,3746.7,3746.6,12.03584593]
[1760227728826,0.001,3746.7,3746.6,12.66944593]
[1760227729266,0.001,3746.7,3746.6,9.0719]
[1760227729449,0.001,3746.7,3746.6,8.61]
[1760227729750,1.921,3746.7,3746.6,8.61]
[1760227729941,15.3617944,3746.7,3746.6,9.84]
[1760227730165,13.9940054,3746.7,3746.6,9.84]
[1760227730457,1.921,3746.7,3746.6,9.84]
[1760227730659,4.5900154,3746.7,3746.6,9.84]
[1760227731044,1.921,3746.7,3746.6,9.84]
[1760227731265,1.921,3746.7,3746.6,12.5159]
[1760227731468,1.921,3746.7,3746.6,11.5319]
[1760227732575,1.921,3746.7,3746.6,12.3]
[1760227732947,1.921,3746.7,3746.6,12.7567]
[1760227734065,1.921,3746.7,3746.6,13.9867]
[1760227735365,1.921,3746.7,3746.6,15.2167]
[1760227736771,1.921,3746.7,3746.6,16.4467]
[1760227738149,1.921,3746.7,3746.6,17.22]
[1760227738546,17.2817944,3746.7,3746.6,17.22]
[1760227739467,17.2817944,3746.7,3746.6,18.45]
[1760227739774,4.5900154,3746.7,3746.6,18.45]
[1760227739971,1.921,3746.7,3746.6,18.45]
[1760227740373,4.5900154,3746.7,3746.6,18.45]
[1760227740853,4.5900154,3746.7,3746.6,19.68]
[1760227741286,0.001,3746.7,3746.6,20.1367]
[1760227741439,0.001,3746.7,3746.6,22.41729312]
[1760227742175,0.001,3746.7,3746.6,23.64729312]
[1760227742490,4.5900154,3746.7,3746.6,20.91]
[1760227742654,17.2082804,3746.7,3746.6,20.91]
[1760227742850,17.3072804,3746.7,3746.6,20.91]
[1760227743557,17.3807944,3746.7,3746.6,22.14]
[1760227744348,17.3807944,3746.7,3746.6,16.79234454]
[1760227744553,6.02138661,3746.7,3746.6,13.80916129]
[1760227744785,17.3807944,3746.7,3746.6,13.80916129]
[1760227744942,17.3807944,3746.7,3746.6,15.03916129]
[1760227745977,17.2817944,3746.7,3746.6,15.03916129]
[1760227746143,17.0436214,3746.7,3746.6,15.03916129]
[1760227746346,3.30297162,3746.2,3746.1,11.39522762]
[1760227746647,18.01375062,3746.2,3746.1,11.39522762]
[1760227746842,17.38015062,3746.2,3746.1,11.39522762]
[1760227747067,13.55946862,3746.2,3746.1,11.39522762]
[1760227747265,13.65846862,3746.2,3746.1,11.39522762]
[1760227747649,17.38015062,3746.2,3746.1,11.39522762]
[1760227747847,17.38015062,3746.2,3746.1,12.62522762]
[1760227748057,18.01375062,3746.2,3746.1,12.62522762]
[1760227748673,15.99489314,3746.0,3744.5,1.23]
[1760227748869,17.91489314,3746.0,3744.5,1.23]
[1760227749072,18.01389314,3746.0,3744.5,1.23]
[1760227749669,18.01389314,3746.0,3745.9,1.232]
[1760227750052,17.38029314,3746.0,3745.9,1.232]
[1760227751081,17.28129314,3746.0,3745.9,1.232]
[1760227751252,17.28129314,3746.0,3745.9,2.462]
[1760227752454,17.68315986,3746.0,3745.9,2.462]
[1760227752789,17.68315986,3746.0,3745.9,3.692]
[1760227752992,17.38029314,3746.0,3745.9,3.692]
[1760227753791,4.68851414,3746.0,3745.9,3.692]
[1760227754093,18.31675986,3746.0,3745.9,4.922]
[1760227755272,18.31675986,3746.0,3745.9,6.152]
[1760227755779,5.62498086,3746.0,3745.9,6.152]
[1760227755962,18.31675986,3746.0,3745.9,6.152]
[1760227756893,18.31675986,3746.0,3745.9,7.382]
[1760227757472,17.91503568,3745.8,3744.7,1.23]
[1760227757673,18.2179024,3745.8,3744.7,1.23]
[1760227757898,18.3173024,3745.8,3744.7,1.23]
[1760227758259,18.35077367,3745.7,3745.6,1e-08]
[1760227758593,18.45017367,3745.7,3745.6,1e-08]
[1760227758758,18.14730695,3745.7,3745.6,1e-08]
[1760227759571,18.14730695,3745.7,3745.6,1.23000001]
[1760227760993,18.14730695,3745.7,3745.6,2.46000001]
[1760227762507,18.14730695,3745.7,3745.6,3.69000001]
[1760227762708,18.01450695,3745.7,3745.6,3.69000001]
[1760227763909,18.01450695,3745.7,3745.6,4.92000001]
[1760227765179,18.01450695,3745.7,3745.6,6.15000001]
[1760227766510,18.01450695,3745.7,3745.6,7.38000001]
[1760227766711,18.31737367,3745.7,3745.6,7.38000001]
[1760227767816,18.01450695,3745.7,3745.6,8.61000001]
[1760227769335,18.01450695,3745.7,3745.6,9.84000001]
[1760227769546,17.38090695,3745.7,3745.6,9.84000001]
[1760227769844,17.91510695,3745.7,3745.6,9.84000001]
[1760227770449,18.01450695,3745.7,3745.6,9.84000001]
[1760227770756,18.31737367,3745.7,3745.6,11.07000001]
[1760227771121,5.22396957,3744.8,3744.7,1.0905]
[1760227771344,18.21861529,3744.8,3744.7,1.0905]
[1760227771660,18.31801529,3744.8,3744.7,1.0905]
[1760227772018,18.31801529,3744.8,3744.7,2.3205]
[1760227772214,18.45753703,3744.8,3744.7,2.3205]
[1760227772619,3.3041122,3744.6,3744.5,0.87510522]
[1760227772934,19.61623398,3744.6,3744.5,0.87510522]
[1760227773240,18.0152912,3744.6,3744.5,0.87510522]
[1760227773443,18.0152912,3744.6,3744.5,2.10510522]
[1760227774344,18.31815792,3744.6,3744.5,2.7e-07]
[1760227774544,19.41276726,3744.6,3744.5,2.7e-07]
[1760227774773,19.41276726,3744.6,3744.5,1.23000027]
[1760227774774,19.71563398,3744.6,3744.5,1.23000027]
[1760227775154,18.31815792,3744.6,3744.5,1.23000027]
[1760227775650,16.9628522,3744.6,3744.5,1.23000027]
[1760227776171,15.3771172,3744.6,3744.5,2.46000027]
[1760227776372,15.1304472,3744.6,3744.5,2.46000027]
[1760227777170,18.0152912,3744.6,3744.5,2.46000027]
[1760227777343,18.0152912,3744.6,3744.5,3.69000027]
[1760227778046,18.0152912,3744.6,3744.5,3.69200027]
[1760227778667,18.31815792,3744.6,3744.5,4.92200027]
[1760227780145,18.31815792,3744.6,3744.5,6.15200027]
[1760227780996,18.31815792,3744.6,3744.1,1e-08]
[1760227780997,4.66547259,3744.2,3744.1,1e-08]
[1760227781284,16.94849326,3742.2,3742.1,2.71266187]
[1760227781495,10.40325149,3742.2,3742.1,2.71266187]
[1760227781702,7.40137823,3742.2,3742.1,2.71266187]
[1760227781861,9.75596013,3742.2,3742.1,2.71266187]
[1760227782058,10.55419088,3742.2,3742.1,2.71266187]
[1760227782275,18.33472388,3742.2,3742.1,2.71266187]
[1760227782994,18.33472388,3742.2,3742.1,3.94266187]
[1760227783875,14.92939899,3742.2,3742.1,3.94266187]
[1760227784205,8.12061999,3742.2,3742.1,4.33692806]
[1760227784373,4.69961999,3742.2,3742.1,5.56692806]
[1760227785299,6.91606399,3742.2,3742.1,5.56692806]
[1760227785487,15.66269899,3742.2,3742.1,5.17266187]
[1760227785674,17.08308072,3742.2,3742.1,5.17266187]
[1760227785879,16.43033584,3742.2,3742.1,6.40266187]
[1760227786079,15.66269899,3742.2,3742.1,6.40266187]
[1760227786614,18.68333629,3742.2,3742.1,6.40266187]
[1760227787189,16.60244705,3742.2,3742.1,7.63266187]
[1760227787397,6.37266805,3742.2,3742.1,7.63266187]
[1760227787600,16.60244705,3742.2,3742.1,7.63266187]
[1760227787775,16.60244705,3742.2,3742.1,7.49309057]
[1760227788573,16.60244705,3742.2,3742.1,8.72309057]
[1760227789985,16.50274705,3742.2,3742.1,8.72309057]
[1760227790213,15.52073464,3742.2,3742.1,9.95309057]
[1760227790589,6.70463675,3742.2,3742.1,9.95309057]
[1760227790790,3.511165,3742.2,3742.1,11.39969963]
[1760227791121,1.92,3742.5,3742.1,11.39969963]
[1760227791276,5.429825,3742.2,3742.1,11.39969963]
[1760227791485,7.770372,3742.6,3742.1,12.62969963]
[1760227791685,5.539521,3742.5,3742.1,12.17839963]
[1760227791899,1.92,3742.3,3742.1,12.17839963]
[1760227792094,7.684325,3742.2,3742.1,12.17839963]
[1760227792295,6.221825,3742.2,3742.1,12.17839963]
[1760227792821,6.221825,3742.2,3742.1,13.40839963]
[1760227793730,5.429825,3742.2,3742.1,12.41309057]
[1760227794086,5.429825,3742.2,3742.1,13.64309057]
[1760227794521,2.827576,3742.8,3742.1,14.34889057]
[1760227794925,1.92,3742.7,3742.1,14.34889057]
[1760227795225,1.92,3742.7,3742.2,1.45862906]
[1760227795537,1.92,3742.5,3742.2,1.45862906]
[1760227795842,1.92,3742.5,3742.2,1.92702906]
[1760227795997,6.482986,3742.6,3742.2,1.92702906]
[1760227796198,2.61870453,3742.9,3742.2,1.92702906]
[1760227796425,1.92,3742.5,3742.3,0.02672153]
[1760227796643,0.69870453,3742.9,3742.3,1.25672153]
[1760227796850,3.042497,3742.6,3742.3,3.10988565]
[1760227797428,1.92,3742.7,3742.3,3.08316412]
[1760227797625,3.849216,3742.6,3742.3,3.08316412]
[1760227798014,4.59189408,3742.7,3742.3,3.08316412]
[1760227798240,1.92,3742.5,3742.3,4.31316412]
[1760227798428,0.001,3742.5,3742.3,4.31316412]
[1760227798637,0.001,3742.5,3742.3,4.78156412]
[1760227798814,0.001,3742.5,3742.4,2.48452629]
[1760227799616,0.001,3742.5,3742.4,3.71452629]
[1760227800628,0.001,3742.5,3742.4,3.68780547]
[1760227800832,0.001,3742.5,3742.4,4.91780547]
[1760227801837,4.59301068,3742.5,3742.4,2.46]
[1760227802040,1.921,3742.5,3742.4,2.46]
[1760227802364,1.921,3742.5,3742.4,4.18512082]
[1760227802651,1.921,3742.5,3742.4,3.69]
[1760227803662,1.921,3742.5,3742.4,4.1584]
[1760227803815,1.921,3742.5,3742.4,7.82871624]
[1760227805295,1.921,3742.5,3742.4,9.05871624]
[1760227805991,1.921,3742.5,3742.4,8.59031624]
[1760227806191,1.921,3742.5,3742.4,6.15]
[1760227806593,1.921,3742.5,3742.4,7.38]
[1760227807880,1.921,3742.5,3742.4,7.8484]
[1760227808089,1.921,3742.5,3742.4,9.0784]
[1760227808289,1.921,3742.5,3742.4,11.74348906]
[1760227808912,1.921,3742.5,3742.4,8.61]
[1760227809418,1.921,3742.5,3742.4,9.84]
[1760227809723,1.921,3742.5,3742.4,10.3084]
[1760227810710,1.921,3742.5,3742.4,11.5384]
[1760227811816,1.921,3742.5,3742.4,11.07]
[1760227812022,1.921,3742.5,3742.4,12.3]
[1760227812480,12.150779,3742.5,3742.4,12.3]
[1760227812680,5.090371,3742.5,3742.4,12.3]
[1760227813497,5.090371,3742.5,3742.4,13.53]
[1760227813884,5.090371,3742.5,3742.4,13.9984]
[1760227814105,1.921,3742.5,3742.4,13.9984]
[1760227814281,1.921,3742.5,3742.4,16.72338127]
[1760227815015,1.921,3742.5,3742.4,17.95338127]
[1760227816304,1.921,3742.5,3742.4,16.4584]
[1760227817403,8.34479168,3742.5,3742.4,15.99]
[1760227817618,8.34479168,3742.5,3742.4,17.22]
[1760227819121,8.34479168,3742.5,3742.4,18.45]
[1760227820493,8.34479168,3742.5,3742.4,19.68]
[1760227821820,14.82278968,3742.5,3742.4,20.91]
[1760227822021,15.45638968,3742.5,3742.4,20.91]
[1760227822188,15.90480209,3742.5,3742.4,20.91]
[1760227823212,15.90480209,3742.5,3742.4,22.14]
[1760227823412,15.55638968,3742.5,3742.4,22.14]
[1760227823644,15.45638968,3742.5,3742.4,22.14]
[1760227824326,5.80427,3742.5,3742.4,22.14]
[1760227824644,5.80427,3742.5,3742.4,23.37]
[1760227824839,1.921,3742.5,3742.4,25.18861517]
[1760227825344,1.921,3742.5,3742.4,24.75371517]
[1760227825500,1.921,3742.5,3742.4,23.37]
[1760227825906,1.921,3742.5,3742.4,24.6]
[1760227826563,12.150779,3742.5,3742.4,24.6]
[1760227827139,12.250779,3742.5,3742.4,24.6]